Cogmind - Beta 13 @@@ ROGUE MODE // 2024.04.11 @ 03:07:00 Player: GregoriusTechneticies Result: Destroyed by YK-3YZ(R) with Subdweller Beam Cannon Performance ------------- Evolutions (0) 0 Regions Visited (3) 600 Robots Destroyed (45) 225 Value Destroyed (437) 437 Prototype IDs (0) 0 Alien Tech Used (0) 0 Bonus (0) 0 TOTAL SCORE: 1262 Bonus ------- None Cogmind --------- Core Integrity 0/250 Matter 251/300 Energy 88/100 System Corruption 10% Temperature Warm (136) Movement Flying (40) Location -10/Subcaves Parts ------- > --- POWER (1) -------- (None) > --- PROPULSION (2) --- Flight Unit > --- UTILITY (2) ------ Terrain Scan Processor > --- WEAPON (2) ------- Hammer > --- INVENTORY (5) ---- Improved Terrain Scanner Seismic Detector Peak State ------------ > --- POWER ------------ Backup Power I > --- PROPULSION ------- Flight Unit Flight Unit > --- UTILITY ---------- Improved Terrain Scanner Terrain Scan Processor > --- WEAPON ----------- Assault Rifle Assault Rifle > --- INVENTORY -------- Backup Power I Flight Unit Flight Unit Sensor Array Hammer [Rating: 10] Favorites ----------- Power Backup Power I Engine Backup Power I Propulsion Light Treads Treads Light Treads Flight Unit Flight Unit Utility Backup Plating I Device Structural Scanner Processor Terrain Scan Processor Protection Backup Plating I Weapon Assault Rifle Energy Gun Backup Laser I Ballistic Gun Assault Rifle Launcher Grenade Launcher Special Weapon Mining Laser Impact Weapon Hammer Build | -11 -10 -10 -10 ------- Run | Yrd Mat Min Sub Slots Evolved . | . . . . Power . | . . . . Propulsion . | . . . . Utility . | . . . . Weapon . | . . . . Parts Attached 46 | 5 30 6 5 Power 7 | 2 4 1 . Engine 7 | 2 4 1 . Core . | . . . . Reactor . | . . . . Propulsion 10 | 2 5 1 2 Treads 2 | 2 . . . Leg . | . . . . Wheel . | . . . . Hover . | . . . . Flight 8 | . 5 1 2 Utility 9 | . 5 3 1 Device 8 | . 5 2 1 Storage . | . . . . Processor 1 | . . 1 . Hackware . | . . . . Protection . | . . . . Artifact . | . . . . Weapon 20 | 1 16 1 2 Energy Gun . | . . . . Energy Cannon . | . . . . Ballistic Gun 10 | 1 8 . 1 Ballistic Cannon . | . . . . Launcher 2 | . 2 . . Special Weapon 2 | . 2 . . Impact Weapon 6 | . 4 1 1 Slashing Weapon . | . . . . Piercing Weapon . | . . . . Special Melee Weapon . | . . . . Unidentified Prototypes . | . . . . Parts Lost 10 | . 1 3 6 Power 3 | . 1 1 1 Propulsion 3 | . . 1 2 Utility 2 | . . 1 1 Weapon 2 | . . . 2 Highest Loss Streak 6 | . 1 3 6 To Critical Strikes . | . . . . Average Slot Usage (%) 94 | . 95 97 63 Engine 13 | . 13 13 3 Treads 6 | . 8 . . Flight 19 | . 18 27 14 Device 16 | . 17 13 10 Processor 2 | . . 14 14 Protection 6 | . 7 . . Energy Gun 3 | . 4 . . Ballistic Gun 20 | . 19 23 21 Launcher 1 | . 1 . . Impact Weapon 2 | . 2 4 . Naked Turns . | . . . . Heaviest Build 8 | 5 8 7 6 Greatest Support 40 | 40 8 8 8 Greatest Overweight (x) 1 | 1 1 . 1 Average Overweight (x) . | . . . . Largest Inventory Capacity 5 | 5 5 5 5 Average Capacity 5 | 5 5 5 5 Most Carried 5 | 5 5 5 5 Average Carried 4 | 4 4 4 3 Final Capacity 5 | 5 5 5 5 Final Carried 5 | 5 5 4 2 Class Distribution -------------------- 100% | Mutant Dominant Class ---------------- Mutant | -10/Materials Mutant | -10/Mines Mutant | -10/Subcaves Resources | -11 -10 -10 -10 ----------- Run | Yrd Mat Min Sub Matter Collected 1219 | 430 505 272 12 Remotely . | . . . . Salvage Created 1366 | 344 814 208 . Parts 82 | 25 49 8 . Haulers Intercepted 1 | . 1 . . Recyclers Shooed 6 | . 5 1 . Parts Field Recycled . | . . . . Retrieved Matter . | . . . . Parts Self-Destructed . | . . . . Prevented . | . . . . Kills | -11 -10 -10 -10 ------- Run | Yrd Mat Min Sub Combat Hostiles Destroyed 9 | . 9 . . Guns 9 | . 9 . . Classes Destroyed 8 | 3 5 . . Worker 10 | 4 6 . . Builder 5 | . 5 . . Tunneler 13 | 9 . 4 . Hauler 1 | . 1 . . Recycler 6 | 1 3 2 . Watcher 1 | . 1 . . Swarmer 3 | . 3 . . Grunt 6 | . 6 . . Best Kill Streak 5 | 5 5 4 . Combat Bots Only 2 | . 2 . . Max Kills in Single Turn 2 | 1 2 1 . Gunslinging . | . . . . Exploded . | . . . . Melee . | . . . . Uniques/NPCs Destroyed . | . . . . Combat | -11 -10 -10 -10 -------- Run | Yrd Mat Min Sub Hostile Shots Fired 91 | . 64 . 27 Missed 38 | . 26 . 12 Damage Taken 885 | . 423 107 355 Core 257 | . 115 . 142 Absorbed by Shields . | . . . . Core Remaining (%) 100 | 100 . . . Volleys Fired 159 | 60 79 12 8 Largest 2 | 1 2 2 2 Hottest 50 | 20 50 40 40 Shots Fired 241 | 60 144 24 13 Gun 240 | 60 143 24 13 Cannon . | . . . . Launcher 1 | . 1 . . Special . | . . . . Kinetic 216 | 60 119 24 13 Thermal 24 | . 24 . . Explosive 1 | . 1 . . Electromagnetic . | . . . . Robot Hit Streak 9 | 7 9 6 9 Robot Miss Streak 8 | 4 8 3 1 Penetration Max . | . . . . Secondary Targets 1 | . 1 . . Max Gunslinging Chain 1 | . 1 . . Shots Hit Robots 144 | 43 70 20 11 Core Hits 55 | 15 35 4 1 Critical Kills . | . . . . Critical Parts Destroyed 1 | . . 1 . Critical Strikes 1 | . . 1 . Smash 1 | . . 1 . Melee Attacks 30 | . 19 11 . Impact 30 | . 19 11 . Slashing . | . . . . Piercing . | . . . . Sneak Attacks 4 | . 2 2 . Combat Hostiles . | . . . . Follow-up Attacks . | . . . . Damage Inflicted 2067 | 527 974 426 140 Guns 1692 | 527 829 196 140 Cannons . | . . . . Explosions 27 | . 27 . . Melee 348 | . 118 230 . Ramming . | . . . . Kinetic 1540 | 527 677 196 140 Thermal 152 | . 152 . . Explosive 27 | . 27 . . Electromagnetic . | . . . . Impact 348 | . 118 230 . Slashing . | . . . . Piercing . | . . . . Highest Corruption 10 | . . 10 10 Average Corruption 10 | . . 10 10 Corruption Purged . | . . . . Corruption Blocked . | . . . . Effects 3 | . . . 3 Message Errors 1 | . . . 1 Parts Rejected 1 | . . . 1 Misdirections 1 | . . . 1 Overload Shots . | . . . . Overflow Damage 113 | . 36 77 . Projectiles . | . . . . Explosions . | . . . . Melee 113 | . 36 77 . Knockbacks . | . . . . Impact . | . . . . Kinetic . | . . . . Secondary . | . . . . Self-Inflicted Damage 29 | . 29 . . Shots 1 | . 1 . . Rammed . | . . . . Targets Rammed . | . . . . Kicked . | . . . . Crushed . | . . . . Highest Temperature 255 | . 2 . 255 Average Temperature 41 | . 2 . 190 Received Heat Transfer 460 | . 144 . 316 Siege Activations . | . . . . Robots Corrupted . | . . . . Combat Hostiles . | . . . . Parts Fried 2 | . 1 1 . Impact Corruptions 6 | . 2 4 . Robots Melted . | . . . . Combat Hostiles . | . . . . Parts Melted 1 | . 1 . . Heat Transferred 629 | . 629 . . Parts Sabotaged . | . . . . Parts Stolen . | . . . . Parts Stripped . | . . . . Power Chain Reactions . | . . . . Alert | -11 -10 -10 -10 ------- Run | Yrd Mat Min Sub Peak Influence 236 | 65 236 114 . Initial 91 | . 3 91 . Average 72 | 25 110 97 . Maximum Alert Level 1 | . 1 . . Low Security (%) 95 | 100 90 100 . Level 1 4 | . 9 . . Level 2 . | . . . . Level 3 . | . . . . Level 4 . | . . . . Level 5 . | . . . . High Security . | . . . . Max Security . | . . . . Squads Dispatched 2 | . 2 . . Investigation 1 | . 1 . . Extermination . | . . . . Reinforcement 1 | . 1 . . Assault . | . . . . Garrison . | . . . . Intercept . | . . . . Searches Triggered . | . . . . Construction Impeded . | . . . . Haulers Reinforced . | . . . . Active Scanning Responses . | . . . . Cargo Convoy Interrupts . | . . . . Stealth | -11 -10 -10 -10 --------- Run | Yrd Mat Min Sub Distress Signals 3 | . 3 . . Communications Jammed . | . . . . Distress Signals . | . . . . Times Spotted 27 | . 24 . 3 Peak Tracking Total 4 | . 4 . 3 Tactical Retreats 3 | . 3 . . Traps | -11 -10 -10 -10 ------- Run | Yrd Mat Min Sub Traps Triggered 1 | . 1 . . Indirectly . | . . . . Trap Hack Attempts . | . . . . Triggered . | . . . . Disarmed . | . . . . Reprogrammed . | . . . . Reused . | . . . . Traps Extracted . | . . . . Installed . | . . . . Triggered . | . . . . Machines | -11 -10 -10 -10 ---------- Run | Yrd Mat Min Sub Machines Disabled 2 | . 2 . . Max in Single Turn 1 | . 1 . . Machines Repaired . | . . . . Machines Dismantled . | . . . . Machines Sabotaged . | . . . . Overloaded Fab Kills . | . . . . Hacking | -11 -10 -10 -10 --------- Run | Yrd Mat Min Sub Machines Accessed 2 | . 2 . . Terminals 1 | . 1 . . Fabricators . | . . . . Repair Stations 1 | . 1 . . Recycling Units . | . . . . Scanalyzers . | . . . . Garrison Access . | . . . . Total Hacks 6 | . 6 . . Successful 4 | . 4 . . Failed 2 | . 2 . . Catastrophic . | . . . . Database Lockouts . | . . . . Manual 3 | . 3 . . Terminals 3 | . 3 . . Fabricators . | . . . . Repair Stations 3 | . 3 . . Recycling Units . | . . . . Scanalyzers . | . . . . Garrison Access . | . . . . Terminal Hacks 2 | . 2 . . Terminal Index 1 | . 1 . . Unreport Threat 1 | . 1 . . Fabricator Hacks . | . . . . Repair Station Hacks 1 | . 1 . . Refit 1 | . 1 . . Recycling Unit Hacks . | . . . . Scanalyzer . | . . . . Garrison Access Hacks . | . . . . Unauthorized Hacks 1 | . 1 . . Terminals 1 | . 1 . . Botnet 1 | . 1 . . Fabricators . | . . . . Repair Stations . | . . . . Recycling Units . | . . . . Scanalyzers . | . . . . Garrison Access . | . . . . Data Cores Recovered . | . . . . Used . | . . . . Hacking Detections 2 | . 2 . . Full Trace Events . | . . . . Feedback Events . | . . . . Feedback Blocked . | . . . . Robot Schematics Acquired . | . . . . Robots Built . | . . . . Authchips . | . . . . Time . | . . . . Total Robot Build Rating . | . . . . Part Schematics Acquired . | . . . . Parts Built . | . . . . Authchips . | . . . . Time . | . . . . Total Part Build Rating . | . . . . Parts Repaired . | . . . . Time . | . . . . Parts Recycled . | . . . . Recycled Matter . | . . . . Retrieved Matter . | . . . . Retrieved Components . | . . . . Parts Scanalyzed . | . . . . Part Schematics Acquired . | . . . . Parts Damaged . | . . . . Bothacking | -11 -10 -10 -10 ------------ Run | Yrd Mat Min Sub Used RIF Installer . | . . . . Robots Hacked . | . . . . Non-combat . | . . . . Combat . | . . . . Robot Hacks Applied . | . . . . Relay Couplers Released . | . . . . Fabnet Peak Effective % . | . . . . Robots Rewired . | . . . . Allies Hacked . | . . . . Hacks Repelled . | . . . . Allies | -11 -10 -10 -10 -------- Run | Yrd Mat Min Sub Total Allies . | . . . . Largest Group . | . . . . Highest-Rated Group . | . . . . Highest-Rated Ally . | . . . . Total Orders . | . . . . Ally Attacks . | . . . . Total Damage . | . . . . Kills . | . . . . Allies Corrupted . | . . . . Allies Melted . | . . . . Intel | -11 -10 -10 -10 ------- Run | Yrd Mat Min Sub Robot Analysis Total . | . . . . Derelict Logs Recovered . | . . . . Drone Launches . | . . . . Drone Recoveries . | . . . . Exploration | -11 -10 -10 -10 ------------- Run | Yrd Mat Min Sub Turns Passed 1534 | 648 695 155 36 Spaces Moved 1201 | 328 653 204 16 Core 459 | 317 141 . 1 Treads 11 | 11 . . . Legs . | . . . . Wheels . | . . . . Hover . | . . . . Flight 731 | . 512 204 15 Fastest Speed 37 | 50 37 37 37 Average Speed 48 | 53 49 37 46 Slowest Speed 160 | 160 100 40 120 Overloaded Moves . | . . . . Propulsion Burnouts . | . . . . Robots Hopped 1 | . 1 . . Cave-ins Triggered 1 | . . 1 . Exploration Rate (%) 17 | 6 42 20 1 Regions Visited 3 Branch Regions 2 Pre-discovered Areas . | . . . . Known Exits Taken . | . . . . Unknown Exits Taken 3 | 1 1 1 . Scrap Searched 2 | . . 2 . Spaces Dug 8 | . 5 3 . Terrain Destroyed 14 | . 11 3 . Melee 8 | . 5 3 . Projectile . | . . . . AOE 6 | . 6 . . Terrain Rammed . | . . . . Walls Destroyed . | . . . . Machines Disabled . | . . . . Actions | -11 -10 -10 -10 --------- Run | Yrd Mat Min Sub Total 1873 | 752 852 238 31 Wait 357 | 320 33 4 . Move 1196 | 327 650 203 16 Hop 1 | . 1 . . Pick Up 37 | 23 12 1 1 Fast Attach 10 | 2 7 1 . Attach 13 | 3 4 2 4 Detach 4 | . 3 . 1 Swap 23 | . 19 3 1 Drop 43 | 17 25 1 . Fire 159 | 60 79 12 8 Melee 30 | . 19 11 . Ram . | . . . . Kick . | . . . . Crush . | . . . . Escape Stasis . | . . . . Rewire . | . . . . Trap . | . . . . Miscellaneous . | . . . . Route ------- -11/Scrapyard -10/Materials (discovered 3 exits: [*Mat] / [*Min x2]) -10/Mines -10/Subcaves History --------- Turn | Location | Event 4 | -11/Scrapyard | Discovered new exit (range 16) 649 | -11/Scrapyard | Entered Materials 650 | -10/Materials | Build established: Mutant 828 | -10/Materials | Discovered new exit (range 16) 984 | -10/Materials | Discovered new exit (range 3) 1252 | -10/Materials | Discovered new exit (range 12) 1344 | -10/Materials | Entered Mines 1352 | -10/Mines | Met a Derelict bent on vengeance 1426 | -10/Mines | Discovered new exit (range 8) 1463 | -10/Mines | Crushed by falling debris 1463 | -10/Mines | System corruption reached 10% 1494 | -10/Mines | Lost 3 parts (1p1n1u) 1499 | -10/Mines | Entered Subcaves 1527 | -10/Subcaves | Core integrity fell below 50% 1532 | -10/Subcaves | Core integrity fell below 20% 1535 | -10/Subcaves | Destroyed by YK-3YZ(R) with Subdweller Beam Cannon Last Messages --------------- crushing effect. 01495_ R-06 Scavenger system terminally corrupted. 01497_ Acquired 56 matter. LOCATION=UNKNOWN AMBIENT_HEAT=-10 GOAL=ESCAPE 01501_ Acquired 7 matter. 01502_ Acquired 5 matter. 01505_ System corrupted: Flight Unit rejected. 01507_ Backup Power I destroyed. O5-5VA(R) emerges from concealment. 01517_ Flight Unit destroyed. 01522_ Acquired Flight Unit. 01522_ Sensor Array destroyed. 01524_ Assault Rifle destroyed. 01529_ Flight Unit destroyed. 01530_ 2&SJLD&,C9MJ1#2J0WL%F XA8WX|Q4&K=GUZ3F 01531_ Assault Rifle destroyed. 01531_ Critical hit (Meltdown: +280). Map ----- +----------------------------------------------------+ | ???????????????????????????????????????????? | | ???????????????????????????????????????????? | | ???????????????????????????????????????????? | | ???????????????????????????????????????????? | | ???????????????????????????????????????????? | | ???????????????????????????????????????????? | | ???????????????????????????????????????????? | | ???????????????????????????????????????????? | | ???????????????????????????????????????????? | | ???????????????????????????????????????????? | | ???????????????????????????????????????????? | | ???????????????????????????????????????????? | | ???????????????????????????????????????????? | | ??????????????????????? ???????????????????? | | ?????????????????????? ? ??????????????????? | | ?????????????????? ??"" ??????????#???????? | | ???????????????????? "" ??????????????????? | | ????????????????????? %""?????#????????????? | | ?????????????????????? "##????????????????? | | ?????????????????????? R"??????????#?????? | | ???????????????????? ?? ????????#???????? | | ??????????????????????## ????????????????? | | ??????????????????????# ##???????????????? | | ??????????????? ?????## R ###?????????????? | | ????????????# ### R #?????????????? | | ????????????? ?# @ #?????????????? | | ?????????????????### ### #?????????????? | | ????????????????????????#; #?????????????? | | ????????????????????????#; #???????#?????? | | ???????????????????????## ##????????????? | | ???????????????????????# % #??#??????????? | | ???????????????????????#####;#?????????????? | | ????????????????????????????##?????????????? | | ???????????????????????????????????????????? | | ???????????????????????????????????????????? | | ??????????????????????????????#?#??????????? | | ???????????????????????????????????????????? | | ???????????????????????????????????????????? | | ???????????????????????????????????#???????? | | ???????????????????????????????????????????? | | ???????????????????????#???????????????????? | | ?????????????????????????????#?????????????? | | ??????????????????????????#????????????????? | | ???????????????????????????????????????????? | | ???????????????????????????????????????????? | | ???????????????????????????????????????????? | | ???????????????????????????????????????????? | | ???????????????????????????????????????????? | | ???????????????????????????????????????????? | | ???????????????????????????????????????????? | +----------------------------------------------------+ Best States ------------- Heat Dissipation 25 Energy Generation 10 Energy Capacity 125 Matter Stores 300 Matter Capacity 300 Sight Range 16 Robot Scan Range 14 Terrain Scan Range 16 Terrain Scan Density 85 Armor Coverage 160 Evasion (%) 62 Recoil Reduction 2 Item Schematics ----------------- None Robot Schematics ------------------ None Fabricated ------------ Nothing Alien Tech Used ----------------- None Achievements -------------- None Challenges ------------ None Game ------ Seed DataWeaponReconfigurator Manual? 0 Play Time 00:34:56 Cumulative 21.8 hours Start 2024.04.11 @ 01:59:02 End 2024.04.11 @ 03:07:00 Sessions 1 Manual Loads 0 Difficulty Rogue Special Mode None Game No. 24 Rogue 9 Adventurer 0 Explorer 15 Win Type - Total 0 Types 0/0/0/0/0/0/0/0/0 Lore% 14 Gallery% 24 Achievement% 18 Wizard Run 0 Options --------- Layout 1 ASCII 0 Keyboard 0 Movement Mouse Keybinds 0 Fullscreen 1 Font 24/Smallcaps Map View 50x35 Zoom Use 0% Tactical HUD 1 Map Filters NONE Filters NONE Steam 1 RUN: 1301083f-054f-4114-9692-1983e357ceb2